Cogmind - Beta 10 X1 @@@ ROGUE MODE // 2020.06.14 @ 22:53:05 Player: Joel Result: Destroyed by G-67 Veteran with Electrolaser Performance ------------- Evolutions (6) 3000 Regions Visited (27) 5400 Robots Destroyed (87) 435 Value Destroyed (2242) 2242 Prototype IDs (49) 980 Alien Tech Used (2) 400 Bonus (2212) 2212 TOTAL SCORE: 14669 Bonus ------- High Alert Combat Kills 68 Follower Combat Kills 332 Met Data Miner 300 Met Imprinter 300 Met Zhirov 300 Met Warlord at Base 500 MAIN.C Attacked Warlord 500 Friendly Fire -88 Cogmind --------- Core Integrity 0/1150 Matter 297/300 Energy 98/100 System Corruption 25% Temperature Cool (0) Movement Core (50) Location -3/Proximity Caves Parts ------- > --- POWER (2) -------- (None) > --- PROPULSION (5) --- (None) > --- UTILITY (10) ----- Experimental Coolant Injector Advanced Signal Interpreter Improved Core Analyzer Experimental Core Shielding Hacking Suite Advanced Hacking Suite > --- WEAPON (2) ------- (None) > --- INVENTORY (4) ---- Advanced Force Field Arc Thrower Barrage Gun Improved Proton Missile Launcher Peak State ------------ > --- POWER ------------ Micro Fission Core Micro Fission Core > --- PROPULSION ------- Nuclear Pulse Thruster Nuclear Pulse Thruster Nuclear Pulse Thruster Field Propulsion Drive Impulse Thruster > --- UTILITY ---------- Experimental Coolant Injector Medium Storage Unit Improved Matter Compressor Experimental Sensor Array Advanced Signal Interpreter Hacking Suite Makeshift Hacking Suite System Mapper Makeshift System Shield Hacking Drone Bay > --- WEAPON ----------- Vortex Cannon Lance > --- INVENTORY -------- Micro Nuclear Core Micro Nuclear Core Nuclear Pulse Thruster Field Propulsion Array Cooled Impulse Thruster Vortex Cannon Improved Proton Missile Launcher [Rating: 113] Favorites ----------- Power Micro Nuclear Core Engine Light Deuterium Engine Power Core Micro Nuclear Core Reactor Fusion Reactor Propulsion Nuclear Pulse Thruster Wheel Wheel Flight Unit Nuclear Pulse Thruster Utility Advanced Signal Interpreter Device Experimental Sensor Array Storage Large Storage Unit Processor Advanced Signal Interpreter Hackware Hacking Suite Protection Propulsion Shielding Weapon Light EM Pulse Cannon Energy Gun Advanced Beam Rifle Energy Cannon Light EM Pulse Cannon Ballistic Gun Enhanced Autogun Ballistic Cannon Bore Cannon Launcher Improved Proton Missile Launcher Special Weapon Molecular Deconstructor Slashing Weapon Scythe Piercing Weapon Lance Build | -11 -10 -10 -9 -9 -9 -8 -8 -7 -7 -7 -7 -6 -6 -6 -6 -6 -5 -5 -5 -5 -5 -4 -4 -4 -4 -4 -3 ------- Run | Scr Mat Min Mat Min Exi Min Mat Fac Low Low Zio Pro Fac Low Low Dat Pro Fac Upp Upp War Pro Fac Upp Upp Zhi Pro Slots Evolved 12 | . . . 2 . . . 2 2 . . . . 2 . . . . 2 . . . . 2 . . . . Power 1 | . . . . . . . . . . . . . . . . . . 1 . . . . . . . . . Propulsion 3 | . . . . . . . . 2 . . . . . . . . . 1 . . . . . . . . . Utility 8 | . . . 2 . . . 2 . . . . . 2 . . . . . . . . . 2 . . . . Weapon . | . . . . . . . . . . . . . . . . . . . . . . . . . . . . Parts Attached 170 | 7 8 8 7 6 2 . 27 29 6 . 1 1 11 1 2 . . 5 6 . 13 1 9 7 4 5 4 Power 19 | 1 2 2 1 . . . 1 2 1 . . . . . . . . 2 . . 3 . . 2 1 1 . Engine 7 | 1 1 2 1 . . . 1 1 . . . . . . . . . . . . . . . . . . . Core 10 | . 1 . . . . . . 1 1 . . . . . . . . 2 . . 2 . . 2 1 . . Reactor 2 | . . . . . . . . . . . . . . . . . . . . . 1 . . . . 1 . Propulsion 37 | 2 2 1 1 . . . 6 6 . . . . 5 . 1 . . 2 2 . 2 1 4 . 1 . 1 Treads . | . . . . . . . . . . . . . . . . . . . . . . . . . . . . Leg . | . . . . . . . . . . . . . . . . . . . . . . . . . . . . Wheel 12 | 2 2 1 1 . . . 5 1 . . . . . . . . . . . . . . . . . . . Hover . | . . . . . . . . . . . . . . . . . . . . . . . . . . . . Flight 25 | . . . . . . . 1 5 . . . . 5 . 1 . . 2 2 . 2 1 4 . 1 . 1 Utility 54 | 2 2 . 2 2 2 . 10 6 2 . 1 . 3 1 . . . 1 2 . 7 . 3 . 1 4 3 Device 20 | . . . 1 1 1 . 3 2 1 . 1 . . . . . . 1 1 . 4 . 1 . . 2 1 Storage 10 | 2 2 . . . 1 . 1 1 . . . . 1 1 . . . . . . . . 1 . . . . Processor 10 | . . . 1 . . . 3 1 1 . . . . . . . . . . . 1 . 1 . 1 . 1 Hackware 5 | . . . . . . . 1 . . . . . 2 . . . . . . . 1 . . . . 1 . Protection 9 | . . . . 1 . . 2 2 . . . . . . . . . . 1 . 1 . . . . 1 1 Artifact . | . . . . . . . . . . . . . . . . . . . . . . . . . . . . Weapon 60 | 2 2 5 3 4 . . 10 15 3 . . 1 3 . 1 . . . 2 . 1 . 2 5 1 . . Energy Gun 7 | 1 . 1 1 . . . 1 2 . . . . . . . . . . . . . . . . 1 . . Energy Cannon 11 | . . . 2 2 . . 1 3 1 . . . . . . . . . 1 . 1 . . . . . . Ballistic Gun 14 | 1 1 2 . . . . 4 3 . . . . 2 . . . . . . . . . 1 . . . . Ballistic Cannon 1 | . . 1 . . . . . . . . . . . . . . . . . . . . . . . . . Launcher 10 | . 1 1 . 2 . . 2 1 1 . . . . . . . . . 1 . . . . 1 . . . Special Weapon 1 | . . . . . . . . . . . . . . . . . . . . . . . . 1 . . . Impact Weapon . | . . . . . . . . . . . . . . . . . . . . . . . . . . . . Slashing Weapon 15 | . . . . . . . 2 6 1 . . 1 1 . . . . . . . . . 1 3 . . . Piercing Weapon 1 | . . . . . . . . . . . . . . . 1 . . . . . . . . . . . . Special Melee Weapon . | . . . . . . . . . . . . . . . . . . . . . . . . . . . . Unidentified Prototypes 26 | . . . 1 1 . . 3 2 . . 1 . . . . . . . 1 . 9 . 1 1 . 6 . Parts Lost 37 | . . 6 2 . . . 1 . . . . . . . 2 . . . 2 . . . 6 13 . . 5 Power 8 | . . 2 1 . . . . . . . . . . . . . . . . . . . . 4 . . 1 Propulsion 12 | . . 1 . . . . 1 . . . . . . . 1 . . . 2 . . . 2 4 . . 1 Utility 10 | . . . . . . . . . . . . . . . 1 . . . . . . . 3 4 . . 2 Weapon 7 | . . 3 1 . . . . . . . . . . . . . . . . . . . 1 1 . . 1 Highest Loss Streak 10 | . . 4 1 . . . 1 . . . . . . . 1 . . . 2 . . . 5 10 . . 4 Average Slot Usage (%) 88 | . 100 98 98 100 97 88 88 79 81 84 84 84 86 98 93 93 93 99 99 100 96 100 90 58 31 42 48 Engine 4 | . 9 9 10 11 11 11 9 3 . . . . . . . . . . . . . . . . . . . Core 5 | . 4 4 . . . . . 3 7 7 7 7 6 6 6 6 6 11 11 11 10 11 10 6 4 3 . Wheel 9 | . 28 27 22 22 22 22 17 8 . . . . . . . . . . . . . . . . . . . Flight 14 | . . . . . . . . 13 30 30 30 30 26 26 25 26 26 29 28 29 29 29 25 15 4 5 4 Device 8 | . . . 11 11 10 11 8 7 12 15 15 15 7 6 6 6 6 10 10 11 7 11 14 5 5 7 7 Storage 11 | . 28 28 22 22 19 11 16 11 7 7 7 7 6 11 6 6 6 5 5 5 5 5 5 3 . . . Processor 10 | . . . 10 11 11 11 16 10 15 15 15 15 13 13 13 13 13 11 11 11 9 5 5 10 7 10 12 Hackware 8 | . . . . . . . 1 7 7 7 7 7 20 20 20 20 20 17 17 17 18 23 18 12 5 7 10 Energy Gun 1 | . 6 7 . . . . 2 1 . . . . . . . . . . . . . . . . 3 5 3 Energy Cannon 3 | . . . 5 14 22 22 5 . . . . . . . . . . . 3 . 3 5 4 . . . . Ballistic Gun 4 | . 21 17 5 . . . 6 4 . . . . 2 6 6 6 6 5 . . . . . . . . . Slashing Weapon 1 | . . . . . . . 4 2 . . . . 2 6 1 . . . . . . . . 3 . . . Piercing Weapon 1 | . . . . . . . . . . . . . . . 4 6 6 5 5 5 5 5 4 . . . . Naked Turns . | . . . . . . . . . . . . . . . . . . . . . . . . . . . . Heaviest Build 111 | 17 41 46 53 53 111 96 111 111 24 24 24 26 24 21 21 21 21 27 37 32 37 37 37 28 20 23 22 Greatest Support 65 | 20 20 20 20 20 20 20 28 40 24 24 24 24 32 32 32 24 30 41 41 41 41 43 55 65 23 23 23 Greatest Overweight (x) 9 | 3 2 4 4 2 5 4 9 3 . . . 7 . . . . . . . . . . . 1 . . . Average Overweight (x) . | . . 1 2 2 2 4 3 1 . . . . . . . . . . . . . . . . . . . Largest Inventory Capacity 30 | 8 16 16 16 16 30 24 30 30 10 10 10 10 14 8 8 8 8 8 8 8 8 8 8 8 4 4 4 Average Capacity 14 | 7 13 16 16 16 17 24 29 20 10 10 10 10 9 8 8 8 8 8 8 8 8 8 8 6 4 4 4 Most Carried 30 | 6 16 16 16 16 24 24 30 30 10 10 10 10 10 8 8 8 8 8 8 8 8 8 8 8 4 4 4 Average Carried 13 | 3 12 15 13 14 16 24 29 20 9 10 10 9 8 8 8 8 8 6 7 8 7 7 7 5 3 4 4 Final Capacity 30 | 8 16 16 16 16 24 24 30 10 10 10 10 10 8 8 8 8 8 8 8 8 8 8 8 4 4 4 4 Final Carried 29 | 4 16 14 13 16 24 24 29 10 10 10 10 10 8 8 8 8 8 8 8 8 7 8 8 4 4 4 4 Class Distribution -------------------- 27% | Hacker-Sprinter 24% | Mutant 23% | Hauler-Mutant 10% | Hacker-Mutant 7% | Scout 3% | Sprinter Dominant Class ---------------- Mutant | -10/Materials Mutant | -10/Mines Mutant | -9/Materials Commander-Mutant | -9/Mines Mutant | -9/Exiles Hauler-Mutant | -8/Mines Hauler-Mutant | -8/Materials Hauler-Mutant | -7/Factory Scout | -7/Lower Caves Scout | -7/Lower Caves Sprinter | -7/Zion Sprinter | -6/Proximity Caves Hacker-Sprinter | -6/Factory Hacker-Mutant | -6/Lower Caves Hacker-Mutant | -6/Lower Caves Hacker-Mutant | -6/Data Miner Hacker-Mutant | -5/Proximity Caves Hacker-Sprinter | -5/Factory Hacker-Sprinter | -5/Upper Caves Hacker-Sprinter | -5/Upper Caves Hacker-Sprinter | -5/Warlord Hacker-Sprinter | -4/Proximity Caves Hacker-Sprinter | -4/Factory Hacker-Sprinter | -4/Upper Caves Mutant | -4/Upper Caves Hacker-Mutant | -4/Zhirov Hacker-Mutant | -3/Proximity Caves Resources | -11 -10 -10 -9 -9 -9 -8 -8 -7 -7 -7 -7 -6 -6 -6 -6 -6 -5 -5 -5 -5 -5 -4 -4 -4 -4 -4 -3 ----------- Run | Scr Mat Min Mat Min Exi Min Mat Fac Low Low Zio Pro Fac Low Low Dat Pro Fac Upp Upp War Pro Fac Upp Upp Zhi Pro Matter Collected 2743 | 283 225 126 253 143 20 . 388 421 141 . 10 . 126 10 15 . . . 163 . 130 10 20 73 80 . 106 Remotely . | . . . . . . . . . . . . . . . . . . . . . . . . . . . . Salvage Created 2706 | 86 637 123 328 87 . . 384 247 51 . . . . 242 . . . 26 274 . . . 103 90 28 . . Parts 178 | 5 33 16 21 6 . . 21 22 7 . . . . 6 . . . 4 17 . . . 11 7 2 . . Haulers Intercepted 5 | . 1 . 2 . . . 1 1 . . . . . . . . . . . . . . . . . . . Recyclers Shooed . | . . . . . . . . . . . . . . . . . . . . . . . . . . . . Parts Field Recycled . | . . . . . . . . . . . . . . . . . . . . . . . . . . . . Retrieved Matter . | . . . . . . . . . . . . . . . . . . . . . . . . . . . . Parts Self-Destructed 44 | . . . . . . . . . 7 . . . . . . . . . 20 . 4 . . 9 4 . . Prevented 59 | . . . . . . . . . . . . . . . . . . . 4 . 53 . . 1 1 . . Kills | -11 -10 -10 -9 -9 -9 -8 -8 -7 -7 -7 -7 -6 -6 -6 -6 -6 -5 -5 -5 -5 -5 -4 -4 -4 -4 -4 -3 ------- Run | Scr Mat Min Mat Min Exi Min Mat Fac Low Low Zio Pro Fac Low Low Dat Pro Fac Upp Upp War Pro Fac Upp Upp Zhi Pro Combat Hostiles Destroyed 63 | . 11 9 7 3 . . 10 3 3 . . . . . . . . . 8 . . . 5 3 1 . . Melee 4 | . . . . . . . . . . . . . . . . . . . 2 . . . . 2 . . . Guns 20 | . 9 6 . . . . 3 1 . . . . . . . . . . . . . . . . 1 . . Cannons 11 | . . . 5 . . . . 2 . . . . . . . . . . 2 . . . 2 . . . . AOE 28 | . 2 3 2 3 . . 7 . 3 . . . . . . . . . 4 . . . 3 1 . . . Classes Destroyed 12 | 2 4 . 1 . . . 1 2 1 . . . . . . . . . 1 . . . . . . . . Worker 4 | . . . . . . . 2 1 . . . . . . . . . . . . . . 1 . . . . Builder 3 | . . . . . . . . 2 . . . . . . . . . . . . . . 1 . . . . Tunneler 1 | 1 . . . . . . . . . . . . . . . . . . . . . . . . . . . Hauler 5 | . 1 . 2 . . . 1 1 . . . . . . . . . . . . . . . . . . . Recycler 5 | 1 2 . . . . . 2 . . . . . . . . . . . . . . . . . . . . Operator 1 | . . . . . . . . . 1 . . . . . . . . . . . . . . . . . . Watcher 5 | . 1 . 1 . . . 1 . . . . . . . . . . 1 . . . . 1 . . . . Swarmer 37 | . 3 8 3 . . . 7 . 3 . . . . . . . . . 7 . . . 2 3 1 . . Grunt 16 | . 8 1 1 3 . . 3 . . . . . . . . . . . . . . . . . . . . Sentry 3 | . . . 3 . . . . . . . . . . . . . . . . . . . . . . . . Programmer 6 | . . . . . . . . 3 . . . . . . . . . . . . . . 3 . . . . Savage 1 | . . . . . . . . . . . . . . . . . . . 1 . . . . . . . . Best Kill Streak 6 | 1 4 4 3 3 . . 6 1 3 . . . . . . . . 1 3 . . . 5 1 1 . . Combat Bots Only 4 | . 3 4 3 3 . . 4 1 3 . . . . . . . . . 3 . . . 2 1 1 . . Max Kills in Single Turn 4 | 1 2 2 2 3 . . 3 1 4 . . . . . . . . 1 3 . . . 3 1 1 . . Gunslinging . | . . . . . . . . . . . . . . . . . . . . . . . . . . . . Exploded 3 | . 2 2 2 3 . . 2 . 3 . . . . . . . . . 3 . . . 2 1 . . . Melee 1 | . . . . . . . . . . . . . . . . . . . 1 . . . . 1 . . . Uniques/NPCs Destroyed . | . . . . . . . . . . . . . . . . . . . . . . . . . . . . Combat | -11 -10 -10 -9 -9 -9 -8 -8 -7 -7 -7 -7 -6 -6 -6 -6 -6 -5 -5 -5 -5 -5 -4 -4 -4 -4 -4 -3 -------- Run | Scr Mat Min Mat Min Exi Min Mat Fac Low Low Zio Pro Fac Low Low Dat Pro Fac Upp Upp War Pro Fac Upp Upp Zhi Pro Damage Taken 5702 | . 346 453 324 12 . . 703 136 110 . . 61 . . 145 . . 52 402 . . 26 653 1716 70 . 493 Core 1751 | . 35 75 44 . . . 78 46 98 . . 31 . . 11 . . 34 141 . . 12 90 919 29 . 108 Absorbed by Shields . | . . . . . . . . . . . . . . . . . . . . . . . . . . . . Core Remaining (%) 83 | 100 . 56 . . . 89 85 . . . . 75 . . . . 98 . . . . 81 . . . . . Volleys Fired 207 | 7 35 37 24 3 . . 49 15 2 . . . 2 . . . . 1 16 . . . 10 3 3 . . Largest 2 | 2 2 2 2 2 . . 2 2 1 . . . 1 . . . . 1 1 . . . 1 1 1 . . Hottest 113 | 60 60 77 113 112 . . 112 90 65 . . . 25 . . . . 25 81 . . . 50 43 94 . . Shots Fired 349 | 14 69 62 48 4 . . 89 24 2 . . . 2 . . . . 1 16 . . . 10 3 3 1 1 Gun 245 | 14 67 50 12 . . . 75 19 . . . . 2 . . . . 1 . . . . . . 3 1 1 Cannon 79 | . . 10 36 2 . . 9 5 1 . . . . . . . . . 6 . . . 10 . . . . Launcher 23 | . 2 2 . 2 . . 5 . 1 . . . . . . . . . 10 . . . . 1 . . . Special 2 | . . . . . . . . . . . . . . . . . . . . . . . . 2 . . . Kinetic 204 | 7 49 52 36 . . . 42 15 . . . . 2 . . . . 1 . . . . . . . . . Thermal 48 | . . . . . . . 33 9 1 . . . . . . . . . . . . . . . 3 1 1 Explosive 12 | . 2 2 . 2 . . 5 . 1 . . . . . . . . . . . . . . . . . . Electromagnetic 73 | 7 18 8 12 2 . . 9 . . . . . . . . . . . 16 . . . . 1 . . . Entropic 10 | . . . . . . . . . . . . . . . . . . . . . . . 10 . . . . Robot Hit Streak 11 | 10 11 7 7 1 . . 9 5 . . . . 1 . . . . 2 1 . . . 5 8 1 2 . Robot Miss Streak 7 | 1 3 6 7 1 . . 6 2 1 . . . . . . . . . 5 . . . 1 . 2 . . Penetration Max . | . . . . . . . . . . . . . . . . . . . . . . . . . . . . Secondary Targets 3 | . 1 1 . . . . 1 . . . . . . . . . . . . . . . . . . . . Max Gunslinging Chain 1 | . 1 1 . . . . 1 . . . . . . . . . . . . . . . . . . . . Shots Hit Robots 217 | 11 46 28 23 2 . . 49 22 . . . . 1 12 . . . 2 4 . . . 7 8 1 1 . Core Hits 126 | 3 27 11 14 4 . . 23 10 4 . . . 1 4 . . . 2 10 . . . 8 4 1 . . Critical Hits 11 | . . 2 6 . . . . 2 . . . . . 1 . . . . . . . . . . . . . Critical Kills 3 | . . . 2 . . . . 1 . . . . . . . . . . . . . . . . . . . Critical Parts Destroyed 7 | . . 2 3 . . . . 1 . . . . . 1 . . . . . . . . . . . . . Melee Attacks 124 | . . . . . . . 6 20 . . . 3 7 12 1 . 30 12 9 1 1 . 6 16 . . . Impact . | . . . . . . . . . . . . . . . . . . . . . . . . . . . . Slashing 65 | . . . . . . . 6 20 . . . 3 7 12 1 . . . . . . . . 16 . . . Piercing 59 | . . . . . . . . . . . . . . . . . 30 12 9 1 1 . 6 . . . . Sneak Attacks 4 | . . . . . . . . 4 . . . . . . . . . . . . . . . . . . . Combat Hostiles . | . . . . . . . . . . . . . . . . . . . . . . . . . . . . Follow-up Attacks . | . . . . . . . . . . . . . . . . . . . . . . . . . . . . Damage Inflicted 8722 | 119 820 478 620 188 . . 1887 784 220 . . . 14 1321 . . . 42 478 . . . 1404 319 28 . . Guns 2005 | 119 563 191 45 . . . 813 218 . . . . 14 . . . . 14 . . . . . . 28 . . Cannons 1407 | . . 51 449 20 . . 150 164 . . . . . . . . . . 135 . . . 438 . . . . Explosions 3224 | . 257 236 126 168 . . 924 . 220 . . . . . . . . . 269 . . . 908 116 . . . Melee 2075 | . . . . . . . . 402 . . . . . 1321 . . . 28 74 . . . 58 192 . . . Ramming 11 | . . . . . . . . . . . . . . . . . . . . . . . . 11 . . . Kinetic 1604 | 53 363 219 315 . . . 453 173 . . . . 14 . . . . 14 . . . . . . . . . Thermal 1750 | . . . 126 . . . 819 209 . . . . . . . . . . . . . . 568 . 28 . . Explosive 1686 | . 257 236 . 168 . . 465 . 220 . . . . . . . . . . . . . 340 . . . . Electromagnetic 1158 | 66 200 23 179 20 . . 150 . . . . . . . . . . . 404 . . . . 116 . . . Impact . | . . . . . . . . . . . . . . . . . . . . . . . . . . . . Slashing 1915 | . . . . . . . . 402 . . . . . 1321 . . . . . . . . . 192 . . . Piercing 160 | . . . . . . . . . . . . . . . . . . 28 74 . . . 58 . . . . Entropic 438 | . . . . . . . . . . . . . . . . . . . . . . . 438 . . . . Highest Corruption 25 | . . . . . . . . 1 1 1 1 . . . . . . . 1 1 2 . 19 21 21 21 25 Average Corruption 8 | . . . . . . . . 1 1 1 1 . . . . . . . 1 1 1 . 5 19 21 21 21 Corruption Purged . | . . . . . . . . . . . . . . . . . . . . . . . . . . . . Effects 94 | . . . . . . . . 1 . 1 . . . . . . . . 2 . . . 5 28 22 17 18 Message Errors 15 | . . . . . . . . . . 1 . . . . . . . . . . . . 1 3 4 3 3 Matter Fused 11 | . . . . . . . . . . . . . . . . . . . . . . . 1 3 5 1 1 Heat Flow Errors 1 | . . . . . . . . . . . . . . . . . . . . . . . . 1 . . . Energy Discharges 11 | . . . . . . . . 1 . . . . . . . . . . 1 . . . . 3 3 . 3 Parts Rejected 1 | . . . . . . . . . . . . . . . . . . . . . . . . . . . 1 Data Loss (minor) 8 | . . . . . . . . . . . . . . . . . . . . . . . 1 5 . 1 1 Data Loss (major) 2 | . . . . . . . . . . . . . . . . . . . . . . . . 2 . . . Misfires 2 | . . . . . . . . . . . . . . . . . . . . . . . . . . 1 1 Misdirections 38 | . . . . . . . . . . . . . . . . . . . . . . . 2 8 10 11 7 Targeting Errors 5 | . . . . . . . . . . . . . . . . . . . 1 . . . . 3 . . 1 Overload Shots . | . . . . . . . . . . . . . . . . . . . . . . . . . . . . Overflow Damage 885 | . . . . . . . 36 133 . . . . . 459 . . . . . . . . 213 44 . . . Projectiles 35 | . . . . . . . . 20 . . . . . . . . . . . . . . 15 . . . . Explosions 244 | . . . . . . . 36 . . . . . . . . . . . . . . . 195 13 . . . Melee 606 | . . . . . . . . 113 . . . . . 459 . . . . . . . . 3 31 . . . Knockbacks 1 | . . . 1 . . . . . . . . . . . . . . . . . . . . . . . . Impact . | . . . . . . . . . . . . . . . . . . . . . . . . . . . . Kinetic 1 | . . . 1 . . . . . . . . . . . . . . . . . . . . . . . . Secondary . | . . . . . . . . . . . . . . . . . . . . . . . . . . . . Self-Inflicted Damage 123 | . . . 28 . . . 41 . 41 . . . . . . . . . 8 . . . . 5 . . . Shots 5 | . . . 1 . . . 2 . 1 . . . . . . . . . 1 . . . . . . . . Rammed 2 | . . . . . . . . . . . . . . . . . . . . . . . . 2 . . . Targets Rammed 2 | . . . . . . . . . . . . . . . . . . . . . . . . 2 . . . Kicked . | . . . . . . . . . . . . . . . . . . . . . . . . . . . . Crushed . | . . . . . . . . . . . . . . . . . . . . . . . . . . . . Highest Temperature 415 | . 45 190 120 45 . . 382 415 18 1 . . . . 8 . . 55 285 150 207 165 126 109 91 . 9 Average Temperature 60 | . 14 55 39 22 . . 97 89 13 1 . . . . 6 . . 11 86 55 76 56 25 58 46 . 6 Received Heat Transfer 711 | . 135 6 60 6 . . 279 . 6 . . . . . 42 . . . . . . . . 102 . . 75 Effects 6 | . . . . . . . . 4 . . . . . . . . . . 2 . . . . . . . . Shutdowns 1 | . . . . . . . . 1 . . . . . . . . . . . . . . . . . . . Interference 5 | . . . . . . . . 3 . . . . . . . . . . 2 . . . . . . . . Siege Activations . | . . . . . . . . . . . . . . . . . . . . . . . . . . . . Robots Corrupted . | . . . . . . . . . . . . . . . . . . . . . . . . . . . . Combat Hostiles . | . . . . . . . . . . . . . . . . . . . . . . . . . . . . Parts Fried 1 | . . . 1 . . . . . . . . . . . . . . . . . . . . . . . . Impact Corruptions . | . . . . . . . . . . . . . . . . . . . . . . . . . . . . Robots Melted . | . . . . . . . . . . . . . . . . . . . . . . . . . . . . Combat Hostiles . | . . . . . . . . . . . . . . . . . . . . . . . . . . . . Parts Melted 1 | . . . . . . . 1 . . . . . . . . . . . . . . . . . . . . Heat Transferred 1662 | . . . 100 . . . 966 259 . . . . . . . . . . . . . . 300 . 37 . . Parts Sabotaged . | . . . . . . . . . . . . . . . . . . . . . . . . . . . . Parts Stolen . | . . . . . . . . . . . . . . . . . . . . . . . . . . . . Parts Stripped . | . . . . . . . . . . . . . . . . . . . . . . . . . . . . Power Chain Reactions 3 | . . . 3 . . . . . . . . . . . . . . . . . . . . . . . . Missiles Intercepted . | . . . . . . . . . . . . . . . . . . . . . . . . . . . . Alert | -11 -10 -10 -9 -9 -9 -8 -8 -7 -7 -7 -7 -6 -6 -6 -6 -6 -5 -5 -5 -5 -5 -4 -4 -4 -4 -4 -3 ------- Run | Scr Mat Min Mat Min Exi Min Mat Fac Low Low Zio Pro Fac Low Low Dat Pro Fac Upp Upp War Pro Fac Upp Upp Zhi Pro Peak Influence 526 | 10 286 254 327 183 . . 526 220 . . . . 115 . . . . 75 . . . . 446 . . . . Average Influence 138 | 5 87 142 133 89 . . 265 93 . . . . 33 . . . . 36 . . . . 226 . . . . Maximum Alert Level 2 | . 1 1 1 . . . 2 1 . . . . . . . . . . . . . . 2 . . . . Low Security (%) 74 | 100 93 47 72 100 . 100 41 99 . . . . 100 . . . . 100 . . . . 42 . . . . Level 1 12 | . 6 52 27 . . . 17 . . . . . . . . . . . . . . . 27 . . . . Level 2 12 | . . . . . . . 41 . . . . . . . . . . . . . . . 29 . . . . Level 3 . | . . . . . . . . . . . . . . . . . . . . . . . . . . . . Level 4 . | . . . . . . . . . . . . . . . . . . . . . . . . . . . . Level 5 . | . . . . . . . . . . . . . . . . . . . . . . . . . . . . High Security . | . . . . . . . . . . . . . . . . . . . . . . . . . . . . Max Security . | . . . . . . . . . . . . . . . . . . . . . . . . . . . . Squads Dispatched 20 | . 2 . . . . . 5 4 . . . . . . 1 . . 4 . . . . 3 . . . 1 Investigation 7 | . 1 . . . . . 3 1 . . . . . . 1 . . 1 . . . . . . . . . Extermination 6 | . . . . . . . . 3 . . . . . . . . . 1 . . . . 2 . . . . Reinforcement 5 | . 1 . . . . . 1 . . . . . . . . . . 2 . . . . 1 . . . . Assault 1 | . . . . . . . . . . . . . . . . . . . . . . . . . . . 1 Garrison 1 | . . . . . . . 1 . . . . . . . . . . . . . . . . . . . . Intercept . | . . . . . . . . . . . . . . . . . . . . . . . . . . . . Construction Impeded . | . . . . . . . . . . . . . . . . . . . . . . . . . . . . Haulers Reinforced . | . . . . . . . . . . . . . . . . . . . . . . . . . . . . Stealth | -11 -10 -10 -9 -9 -9 -8 -8 -7 -7 -7 -7 -6 -6 -6 -6 -6 -5 -5 -5 -5 -5 -4 -4 -4 -4 -4 -3 --------- Run | Scr Mat Min Mat Min Exi Min Mat Fac Low Low Zio Pro Fac Low Low Dat Pro Fac Upp Upp War Pro Fac Upp Upp Zhi Pro Distress Signals 12 | . 1 . 1 . . . 1 2 . . . . 2 . . . . 4 . . . . 1 . . . . Communications Jammed . | . . . . . . . . . . . . . . . . . . . . . . . . . . . . Distress Signals . | . . . . . . . . . . . . . . . . . . . . . . . . . . . . Times Spotted 283 | . 16 17 10 4 . . 28 12 9 . . 3 14 1 13 . 1 36 24 1 2 6 19 38 5 . 24 Peak Tracking Total 16 | . 3 5 4 3 . . 6 4 4 . . 3 10 1 7 . 1 10 5 1 14 4 8 16 2 . 12 Tactical Retreats 59 | . . 3 1 . . . 1 3 2 . . 1 2 1 5 . . 9 6 . 2 2 2 12 2 . 5 Traps | -11 -10 -10 -9 -9 -9 -8 -8 -7 -7 -7 -7 -6 -6 -6 -6 -6 -5 -5 -5 -5 -5 -4 -4 -4 -4 -4 -3 ------- Run | Scr Mat Min Mat Min Exi Min Mat Fac Low Low Zio Pro Fac Low Low Dat Pro Fac Upp Upp War Pro Fac Upp Upp Zhi Pro Traps Triggered 5 | . 2 . . . . . 2 . . . . . . . . . . 1 . . . . . . . . . Indirectly . | . . . . . . . . . . . . . . . . . . . . . . . . . . . . Trap Hack Attempts . | . . . . . . . . . . . . . . . . . . . . . . . . . . . . Triggered . | . . . . . . . . . . . . . . . . . . . . . . . . . . . . Disarmed . | . . . . . . . . . . . . . . . . . . . . . . . . . . . . Reprogrammed . | . . . . . . . . . . . . . . . . . . . . . . . . . . . . Reused . | . . . . . . . . . . . . . . . . . . . . . . . . . . . . Traps Extracted . | . . . . . . . . . . . . . . . . . . . . . . . . . . . . Installed . | . . . . . . . . . . . . . . . . . . . . . . . . . . . . Triggered 6 | . . . . . . . . . . . . . . . . . . . . . . . . . . . 6 Machines | -11 -10 -10 -9 -9 -9 -8 -8 -7 -7 -7 -7 -6 -6 -6 -6 -6 -5 -5 -5 -5 -5 -4 -4 -4 -4 -4 -3 ---------- Run | Scr Mat Min Mat Min Exi Min Mat Fac Low Low Zio Pro Fac Low Low Dat Pro Fac Upp Upp War Pro Fac Upp Upp Zhi Pro Machines Disabled 25 | . . 2 3 2 . . 6 . . . . . . . . . . . . 1 . . 9 1 . 1 . Max in Single Turn 5 | . . 1 2 1 . . 3 . . . . . . . . . . . . 1 . . 5 1 . 1 . Machines Sabotaged 1 | . . . . . . . . . . . . . . . 1 . . . . . . . . . . . . Garrisons Compromised . | . . . . . . . . . . . . . . . . . . . . . . . . . . . . Overloaded Fab Kills . | . . . . . . . . . . . . . . . . . . . . . . . . . . . . Fab Network Shutdowns . | . . . . . . . . . . . . . . . . . . . . . . . . . . . . Hacking | -11 -10 -10 -9 -9 -9 -8 -8 -7 -7 -7 -7 -6 -6 -6 -6 -6 -5 -5 -5 -5 -5 -4 -4 -4 -4 -4 -3 --------- Run | Scr Mat Min Mat Min Exi Min Mat Fac Low Low Zio Pro Fac Low Low Dat Pro Fac Upp Upp War Pro Fac Upp Upp Zhi Pro Machines Accessed 69 | . 5 . 4 . 4 1 6 6 1 1 . . 5 . 2 4 . 5 2 . 4 . 7 . 3 9 . Terminals 32 | . 5 . 4 . . 1 2 5 . . . . 5 . 1 . . 4 . . . . 5 . . . . Fabricators 3 | . . . . . . . . 1 . . . . . . . . . 1 . . . . 1 . . . . Repair Stations 1 | . . . . . . . 1 . . . . . . . . . . . . . . . . . . . . Recycling Units 1 | . . . . . . . 1 . . . . . . . . . . . . . . . . . . . . Scanalyzers 3 | . . . . . . . 2 . . . . . . . . . . . . . . . 1 . . . . Garrison Access . | . . . . . . . . . . . . . . . . . . . . . . . . . . . . Total Hacks 265 | . 16 . 18 . 4 1 18 16 1 1 . . 27 . 12 24 . 22 8 . 9 . 33 . 7 48 . Successful 213 | . 12 . 10 . 4 1 11 10 1 1 . . 19 . 7 24 . 15 8 . 9 . 26 . 7 48 . Failed 52 | . 4 . 8 . . . 7 6 . . . . 8 . 5 . . 7 . . . . 7 . . . . Catastrophic 7 | . . . . . . . . 1 . . . . 2 . . . . 1 . . . . 3 . . . . Database Lockouts . | . . . . . . . . . . . . . . . . . . . . . . . . . . . . Manual 95 | . 12 . 16 . . 1 3 9 . . . . 17 . 10 . . 13 . . 1 . 12 1 . . . Terminals 136 | . 16 . 18 . . 1 6 13 . . . . 27 . 11 . . 20 . . . . 24 . . . . Fabricators 7 | . . . . . . . . 3 . . . . . . . . . 2 . . . . 2 . . . . Repair Stations 4 | . . . . . . . 4 . . . . . . . . . . . . . . . . . . . . Recycling Units 1 | . . . . . . . 1 . . . . . . . . . . . . . . . . . . . . Scanalyzers 14 | . . . . . . . 7 . . . . . . . . . . . . . . . 7 . . . . Garrison Access . | . . . . . . . . . . . . . . . . . . . . . . . . . . . . Terminal Hacks 150 | . 5 . 4 . 4 1 . 3 1 1 . . 11 . 4 24 . 8 8 . 9 . 12 . 7 48 . Record 71 | . . . . . 4 . . . . . . . . . 1 8 . . 7 . 7 . 3 . 5 36 . Part Schematic 18 | . . . . . . . . . . . . . 2 . 2 8 . 2 . . . . . . . 4 . Robot Schematic 5 | . . . . . . . . . . . . . . . . 5 . . . . . . . . . . . Robot Analysis 4 | . . . . . . . . . . . . . . . . . . . . . . . . . . 4 . Prototype ID Bank 8 | . . . . . . . . . . . . . 1 . . 3 . . . . . . . . . 4 . Open Door 8 | . . . . . . . . . 1 1 . . . . 1 . . . 1 . 2 . . . 2 . . Branch Access Points 4 | . . . . . . . . 1 . . . . 1 . . . . 1 . . . . 1 . . . . Terminal Index 6 | . 1 . 2 . . . . 1 . . . . 1 . . . . 1 . . . . . . . . . Fabricator Index 3 | . . . . . . . . . . . . . 1 . . . . 1 . . . . 1 . . . . Scanalyzer Index 1 | . . . . . . . . . . . . . . . . . . . . . . . 1 . . . . Alert Level 1 | . . . . . . . . . . . . . . . . . . . . . . . 1 . . . . Unreport Threat 10 | . 2 . . . . . . . . . . . 2 . . . . 2 . . . . 4 . . . . Locate Traps 1 | . . . 1 . . . . . . . . . . . . . . . . . . . . . . . . Transport Status 1 | . . . . . . . . . . . . . 1 . . . . . . . . . . . . . . Hauler Manifests 2 | . . . . . . . . . . . . . 1 . . . . . . . . . 1 . . . . Zone Layout 7 | . 2 . 1 . . 1 . 1 . . . . 1 . . . . 1 . . . . . . . . . Fabricator Hacks 6 | . . . . . . . . 2 . . . . . . . . . 2 . . . . 2 . . . . Load Schematic 3 | . . . . . . . . 1 . . . . . . . . . 1 . . . . 1 . . . . Build 3 | . . . . . . . . 1 . . . . . . . . . 1 . . . . 1 . . . . Repair Station Hacks 3 | . . . . . . . 3 . . . . . . . . . . . . . . . . . . . . Scan Component 2 | . . . . . . . 2 . . . . . . . . . . . . . . . . . . . . Repair 1 | . . . . . . . 1 . . . . . . . . . . . . . . . . . . . . Recycling Unit Hacks 1 | . . . . . . . 1 . . . . . . . . . . . . . . . . . . . . Report Inventory 1 | . . . . . . . 1 . . . . . . . . . . . . . . . . . . . . Scanalyzer 13 | . . . . . . . 6 . . . . . . . . . . . . . . . 7 . . . . Insert Component 5 | . . . . . . . 3 . . . . . . . . . . . . . . . 2 . . . . Analyze 8 | . . . . . . . 3 . . . . . . . . . . . . . . . 5 . . . . Garrison Access Hacks . | . . . . . . . . . . . . . . . . . . . . . . . . . . . . Unauthorized Hacks 40 | . 7 . 6 . . . 1 5 . . . . 8 . 3 . . 5 . . . . 5 . . . . Terminals 40 | . 7 . 6 . . . 1 5 . . . . 8 . 3 . . 5 . . . . 5 . . . . Track 16 | . 4 . 3 . . . 1 2 . . . . 2 . 1 . . 2 . . . . 1 . . . . Assimilate 9 | . 1 . 1 . . . . 2 . . . . 3 . . . . 1 . . . . 1 . . . . Botnet 7 | . 1 . 1 . . . . 1 . . . . 2 . . . . 1 . . . . 1 . . . . Detonate 2 | . . . . . . . . . . . . . . . 1 . . . . . . . 1 . . . . Operators 5 | . 1 . 1 . . . . . . . . . 1 . . . . 1 . . . . 1 . . . . Sabotage 1 | . . . . . . . . . . . . . . . 1 . . . . . . . . . . . . Fabricators . | . . . . . . . . . . . . . . . . . . . . . . . . . . . . Repair Stations . | . . . . . . . . . . . . . . . . . . . . . . . . . . . . Recycling Units . | . . . . . . . . . . . . . . . . . . . . . . . . . . . . Scanalyzers . | . . . . . . . . . . . . . . . . . . . . . . . . . . . . Garrison Access . | . . . . . . . . . . . . . . . . . . . . . . . . . . . . Data Cores Recovered . | . . . . . . . . . . . . . . . . . . . . . . . . . . . . Used . | . . . . . . . . . . . . . . . . . . . . . . . . . . . . Hacking Detections 31 | . 5 . 2 . . . 4 6 . . . . 5 . 1 . . 4 . . . . 4 . . . . Full Trace Events 2 | . . . . . . . 1 1 . . . . . . . . . . . . . . . . . . . Feedback Events . | . . . . . . . . . . . . . . . . . . . . . . . . . . . . Feedback Blocked . | . . . . . . . . . . . . . . . . . . . . . . . . . . . . Robot Schematics Acquired 5 | . . . . . . . . . . . . . . . . 5 . . . . . . . . . . . Robots Built . | . . . . . . . . . . . . . . . . . . . . . . . . . . . . Matter . | . . . . . . . . . . . . . . . . . . . . . . . . . . . . Time . | . . . . . . . . . . . . . . . . . . . . . . . . . . . . Total Robot Build Rating . | . . . . . . . . . . . . . . . . . . . . . . . . . . . . Part Schematics Acquired 23 | . . . . . . . 3 . . . . . 2 . 2 8 . 2 . . . . 2 . . 4 . Parts Built 3 | . . . . . . . . 1 . . . . . . . . . 1 . . . . 1 . . . . Matter 881 | . . . . . . . . 285 . . . . . . . . . 212 . . . . 384 . . . . Time 333 | . . . . . . . . 76 . . . . . . . . . 53 . . . . 204 . . . . Total Part Build Rating 19 | . . . . . . . . 5 . . . . . . . . . 6 . . . . 8 . . . . Parts Repaired 1 | . . . . . . . 1 . . . . . . . . . . . . . . . . . . . . Time 80 | . . . . . . . 80 . . . . . . . . . . . . . . . . . . . . Parts Recycled . | . . . . . . . . . . . . . . . . . . . . . . . . . . . . Recycled Matter . | . . . . . . . . . . . . . . . . . . . . . . . . . . . . Retrieved Matter . | . . . . . . . . . . . . . . . . . . . . . . . . . . . . Retrieved Components . | . . . . . . . . . . . . . . . . . . . . . . . . . . . . Parts Scanalyzed 5 | . . . . . . . 3 . . . . . . . . . . . . . . . 2 . . . . Part Schematics Acquired 5 | . . . . . . . 3 . . . . . . . . . . . . . . . 2 . . . . Parts Damaged . | . . . . . . . . . . . . . . . . . . . . . . . . . . . . Bothacking | -11 -10 -10 -9 -9 -9 -8 -8 -7 -7 -7 -7 -6 -6 -6 -6 -6 -5 -5 -5 -5 -5 -4 -4 -4 -4 -4 -3 ------------ Run | Scr Mat Min Mat Min Exi Min Mat Fac Low Low Zio Pro Fac Low Low Dat Pro Fac Upp Upp War Pro Fac Upp Upp Zhi Pro Used RIF Installer . | . . . . . . . . . . . . . . . . . . . . . . . . . . . . Robots Hacked . | . . . . . . . . . . . . . . . . . . . . . . . . . . . . Non-combat . | . . . . . . . . . . . . . . . . . . . . . . . . . . . . Combat . | . . . . . . . . . . . . . . . . . . . . . . . . . . . . Robot Hacks Applied . | . . . . . . . . . . . . . . . . . . . . . . . . . . . . Relay Couplers Released . | . . . . . . . . . . . . . . . . . . . . . . . . . . . . Robots Rewired . | . . . . . . . . . . . . . . . . . . . . . . . . . . . . Allies Hacked . | . . . . . . . . . . . . . . . . . . . . . . . . . . . . Hacks Repelled . | . . . . . . . . . . . . . . . . . . . . . . . . . . . . Allies | -11 -10 -10 -9 -9 -9 -8 -8 -7 -7 -7 -7 -6 -6 -6 -6 -6 -5 -5 -5 -5 -5 -4 -4 -4 -4 -4 -3 -------- Run | Scr Mat Min Mat Min Exi Min Mat Fac Low Low Zio Pro Fac Low Low Dat Pro Fac Upp Upp War Pro Fac Upp Upp Zhi Pro Total Allies 12 | . . 2 1 3 . . . 2 . . . . 2 . . . . 1 . . . . 1 . . . . Largest Group 4 | . . 2 1 4 3 3 3 1 . . . . 2 1 . . . 1 . . . . 1 . . . . Highest-Rated Group 52 | . . 45 10 50 40 40 40 26 . . . . 52 26 . . . 26 . . . . 10 . . . . Highest-Rated Ally 31 | . . 31 10 16 16 16 16 26 . . . . 26 26 . . . 26 . . . . 10 . . . . Total Orders 1 | . . . . . . . . . . . . . . . . . . 1 . . . . . . . . . EXPLORE 1 | . . . . . . . . . . . . . . . . . . 1 . . . . . . . . . Ally Attacks 57 | . . 15 . 9 . . 33 . . . . . . . . . . . . . . . . . . . . Total Damage 680 | . . 166 . 123 . . 391 . . . . . . . . . . . . . . . . . . . . Kills 14 | . . 4 . 2 . . 8 . . . . . . . . . . . . . . . . . . . . Allies Corrupted . | . . . . . . . . . . . . . . . . . . . . . . . . . . . . Allies Melted . | . . . . . . . . . . . . . . . . . . . . . . . . . . . . Intel | -11 -10 -10 -9 -9 -9 -8 -8 -7 -7 -7 -7 -6 -6 -6 -6 -6 -5 -5 -5 -5 -5 -4 -4 -4 -4 -4 -3 ------- Run | Scr Mat Min Mat Min Exi Min Mat Fac Low Low Zio Pro Fac Low Low Dat Pro Fac Upp Upp War Pro Fac Upp Upp Zhi Pro Robot Analysis Total 4 | . . . . . . . . . . . . . . . . . . . . . . . . . . 4 . Derelict Logs Recovered 16 | . . 1 . . . . . . 2 1 2 2 . . 1 . 1 . 2 1 . 3 . . . . . Drone Launches 1 | . . . . . . . . . . . . . . . . . . 1 . . . . . . . . . Drone Recoveries 1 | . . . . . . . . . . . . . . . . . . 1 . . . . . . . . . Exploration | -11 -10 -10 -9 -9 -9 -8 -8 -7 -7 -7 -7 -6 -6 -6 -6 -6 -5 -5 -5 -5 -5 -4 -4 -4 -4 -4 -3 ------------- Run | Scr Mat Min Mat Min Exi Min Mat Fac Low Low Zio Pro Fac Low Low Dat Pro Fac Upp Upp War Pro Fac Upp Upp Zhi Pro Turns Passed 12992 | 114 720 526 407 384 650 421 1767 1276 414 134 345 496 347 191 339 27 483 524 941 128 403 436 622 343 243 114 197 Spaces Moved 16375 | 86 566 441 281 351 606 330 788 1120 829 345 856 805 684 368 703 79 699 712 1104 383 1081 608 883 607 425 256 379 Core 301 | 17 . . . . . . . . . . . 17 . . . . . . . . . . . 136 56 . 75 Treads . | . . . . . . . . . . . . . . . . . . . . . . . . . . . . Legs . | . . . . . . . . . . . . . . . . . . . . . . . . . . . . Wheels 3843 | 69 566 441 281 351 606 330 788 411 . . . . . . . . . . . . . . . . . . . Hover . | . . . . . . . . . . . . . . . . . . . . . . . . . . . . Flight 12231 | . . . . . . . . 709 829 345 856 788 684 368 703 79 699 712 1104 383 1081 608 883 471 369 256 304 Fastest Speed 21 | 50 80 90 100 100 100 120 120 26 26 26 26 26 26 31 31 34 31 28 28 28 28 28 26 21 40 40 40 Average Speed 48 | 86 88 91 100 100 103 120 125 62 26 26 26 34 27 33 33 34 32 28 28 28 28 28 27 32 41 40 41 Slowest Speed 400 | 200 100 120 120 100 130 120 180 125 26 26 26 400 34 34 34 34 34 28 28 28 28 28 28 100 50 40 50 Overloaded Moves 200 | . . . . . . . . . . . . . . . . . . . . . . . . 200 . . . Propulsion Burnouts . | . . . . . . . . . . . . . . . . . . . . . . . . . . . . Robots Hopped 53 | . . . . . . . . 8 3 1 . . 4 . . . . 18 . . 3 . 8 6 . . 2 Cave-ins Triggered 1 | . . . . . . . . . . . . . . . . . . . . . . . 1 . . . . Teleports 1 | . . . . . . . . . . . . . . . . . . . . . . . . . . 1 . Exploration Rate (%) 60 | 4 61 72 29 85 93 83 64 31 77 56 84 75 16 59 85 70 70 19 83 58 91 71 21 76 52 62 57 Regions Visited 27 Branch Regions 20 Pre-discovered Areas 6 | . . . . 1 . . . . 1 . . . . . . 1 . . . . . . . . . 3 . Known Exits Taken 24 | . . . 1 1 1 1 1 1 1 1 1 1 1 1 1 1 1 1 1 1 1 1 1 1 1 1 . Unknown Exits Taken 3 | 1 1 1 . . . . . . . . . . . . . . . . . . . . . . . . . Scrap Searched 39 | . . 1 . 1 . 1 . . 10 11 1 1 . 1 3 . 2 . 2 2 . 1 . . 1 . 1 Spaces Dug 123 | . . . . . . . 17 15 20 . . 3 7 . 1 . 29 10 3 . 1 . 7 10 . . . Terrain Destroyed 451 | . 15 22 24 15 . . 103 15 21 . . 3 7 . 1 . 29 10 3 . 1 . 170 10 1 . 1 Melee 89 | . . . . . . . 6 15 . . . 3 7 . 1 . 29 10 3 . 1 . 4 10 . . . Projectile 34 | . . 10 17 . . . . . 1 . . . . . . . . . . . . . 4 . 1 . 1 AOE 328 | . 15 12 7 15 . . 97 . 20 . . . . . . . . . . . . . 162 . . . . Actions | -11 -10 -10 -9 -9 -9 -8 -8 -7 -7 -7 -7 -6 -6 -6 -6 -6 -5 -5 -5 -5 -5 -4 -4 -4 -4 -4 -3 --------- Run | Scr Mat Min Mat Min Exi Min Mat Fac Low Low Zio Pro Fac Low Low Dat Pro Fac Upp Upp War Pro Fac Upp Upp Zhi Pro Total 20937 | 110 720 510 363 377 631 355 1484 1662 1023 390 977 1022 835 423 805 78 906 998 1703 401 1178 872 1231 717 488 264 414 Wait 3884 | . 92 17 36 15 5 26 580 435 181 45 120 213 118 43 99 . 178 286 562 18 67 264 324 78 51 . 31 Move 16248 | 85 565 440 280 350 605 329 787 1105 823 342 855 804 675 367 702 78 698 677 1103 382 1075 607 866 594 424 255 375 Hop 47 | . . . . . . . . 6 2 1 . . 4 . . . . 16 . . 2 . 8 6 . . 2 Pick Up 103 | 9 13 6 9 3 14 . 16 8 2 1 . . 5 . . . . 1 4 . 5 . 2 1 4 . . Fast Attach 61 | 4 1 . 1 . . . 9 4 3 . 1 . 6 1 2 . . . 1 . 7 . 4 3 3 7 4 Attach 60 | 3 . 6 5 . 2 . 4 18 2 . . 1 5 . . . . 3 2 . 2 . 2 4 1 . . Detach 36 | . . . . . 1 . 4 15 4 . . 1 3 . . . . . . . 4 . . 4 . . . Swap 51 | . 7 2 1 6 . . 14 7 1 . . . . . . . . 2 3 . 4 1 3 . . . . Drop 113 | 2 7 2 7 . 4 . 15 29 3 1 1 . 10 . 1 . . . 3 . 11 . 5 6 2 2 2 Fire 207 | 7 35 37 24 3 . . 49 15 2 . . . 2 . . . . 1 16 . . . 10 3 3 . . Melee 124 | . . . . . . . 6 20 . . . 3 7 12 1 . 30 12 9 1 1 . 6 16 . . . Ram 2 | . . . . . . . . . . . . . . . . . . . . . . . . 2 . . . Kick . | . . . . . . . . . . . . . . . . . . . . . . . . . . . . Crush . | . . . . . . . . . . . . . . . . . . . . . . . . . . . . Escape Stasis . | . . . . . . . . . . . . . . . . . . . . . . . . . . . . Rewire 1 | . . . . . . . . . . . . . . . . . . . . . . . 1 . . . . Trap . | . . . . . . . . . . . . . . . . . . . . . . . . . . . . Miscellaneous . | . . . . . . . . . . . . . . . . . . . . . . . . . . . . Route ------- -11/Scrapyard -10/Materials (discovered 3 exits: *Mat x2 / [*Min]) -10/Mines (discovered 2 exits: *Mat x2) -9/Materials -9/Mines (discovered 3 exits: *Mat x2 / *Exi) -9/Exiles (discovered 2 exits: *Min x2) -8/Mines (discovered 2 exits: *Mat x2) -8/Materials (discovered 2 exits: *Fac x2) -7/Factory (discovered 3 exits: *Sto / *Low x2) -7/Lower Caves -7/Lower Caves (discovered 2 exits: Fac / *Zio) -7/Zion (discovered 2 exits: Dee / *Pro) -6/Proximity Caves -6/Factory (discovered 4 exits: *Fac x2 / *Low x2) -6/Lower Caves -6/Lower Caves -6/Data Miner -5/Proximity Caves -5/Factory (discovered 3 exits: Fac / *Upp x2) -5/Upper Caves -5/Upper Caves (discovered 2 exits: Fac / *War) -5/Warlord -4/Proximity Caves -4/Factory (discovered 6 exits: *Res x2 / *Upp x2 / Ext x2) -4/Upper Caves -4/Upper Caves -4/Zhirov -3/Proximity Caves History --------- Turn | Location | Event 11 | -11/Scrapyard | Discovered new exit (range 16) 115 | -11/Scrapyard | Entered Materials 133 | -10/Materials | Discovered new exit (range 9) 318 | -10/Materials | Build established: Mutant 452 | -10/Materials | Discovered new exit (range 14) 700 | -10/Materials | Discovered new exit (range 11) 835 | -10/Materials | Entered Mines 852 | -10/Mines | Discovered new exit (range 14) 967 | -10/Mines | Discovered new exit (range 9) 1048 | -10/Mines | Received a Rocket Launcher from a helpful Derelict 1128 | -10/Mines | Assembled infested the area 1133 | -10/Mines | Assisted by a Guerilla fighting off Assembled 1361 | -10/Mines | Entered Materials 1361 | -9/Materials | Evolved 2 slots: Utility x2 1362 | -9/Materials | Lost 4 parts (1p1n2w) 1674 | -9/Materials | Discovered new exit (range 8) 1756 | -9/Materials | Identified exit to Mines 1768 | -9/Materials | Entered Mines 1768 | -9/Mines | Accompanied by 1 ally 1769 | -9/Mines | Learned location of Storage (-7) 1783 | -9/Mines | Assisted by bots powering up and referring to "LRC-V3" 1962 | -9/Mines | Discovered new exit (range 6) 1964 | -9/Mines | Found a damaged Exp. Sensor Array with a note attached 1966 | -9/Mines | Found Prototype Device 2049 | -9/Mines | Discovered new exit (range 6) 2054 | -9/Mines | Identified exit to Materials 2073 | -9/Mines | Joined a pair of Derelicts in attacking an 0b10 outpost 2085 | -9/Mines | Identified Exp. Sensor Array 2141 | -9/Mines | Deemed a non-threat by the Exiles lab entrance 2142 | -9/Mines | Discovered new exit (range 5) 2145 | -9/Mines | Identified exit to Exiles 2152 | -9/Mines | Entered Exiles 2152 | -9/Exiles | Found Exiles lab abandoned 2152 | -9/Exiles | Accompanied by 3 allies 2168 | -9/Exiles | Discovered new exit (range 14) 2180 | -9/Exiles | Identified exit to Mines 2623 | -9/Exiles | Discovered exit to Mines (range 12) 2802 | -9/Exiles | Entered Mines 2802 | -8/Mines | Accompanied by 3 allies 2951 | -8/Mines | Build established: Hauler-Mutant 3027 | -8/Mines | Discovered exit to Materials (range 11) 3174 | -8/Mines | Discovered exit to Materials (range 15) 3223 | -8/Mines | Entered Materials 3223 | -8/Materials | Accompanied by 3 allies 3223 | -8/Materials | Evolved 2 slots: Utility x2 3943 | -8/Materials | Discovered new exit (range 10) 3957 | -8/Materials | Identified exit to Factory 4246 | -8/Materials | Garrison activated, responded to threat 4814 | -8/Materials | Repaired Exp. Sensor Array 4866 | -8/Materials | Discovered exit to Factory (range 9) 4990 | -8/Materials | Entered Factory 4990 | -7/Factory | Evolved 2 slots: Propulsion x2 4991 | -7/Factory | Identified exit to Storage 5967 | -7/Factory | Identified exit to Lower Caves 6220 | -7/Factory | Fabricated Exp. Sensor Array (x1) 6266 | -7/Factory | Entered Lower Caves 6266 | -7/Lower Caves | Accompanied by 1 ally 6328 | -7/Lower Caves | Learned 4 Factory zone layouts 6374 | -7/Lower Caves | Build established: Scout 6458 | -7/Lower Caves | Learned location of Zion (-7) 6641 | -7/Lower Caves | Discovered new exit (range 10) 6642 | -7/Lower Caves | Attracted the attention of an 0b10 checkpoint 6680 | -7/Lower Caves | Identified exit to Lower Caves 6680 | -7/Lower Caves | Entered another Lower Caves area 6693 | -7/Lower Caves | Discovered new exit (range 13) 6790 | -7/Lower Caves | Learned Factory trap positions 6801 | -7/Lower Caves | Discovered new exit (range 13) 6814 | -7/Lower Caves | Identified exit to Zion 6814 | -7/Lower Caves | Entered Zion 6846 | -7/Zion | Discovered new exit (range 10) 6852 | -7/Zion | System corruption cleaned by Quarantine Array 6894 | -7/Zion | Given A8's code to call for help 6938 | -7/Zion | Identified exit to Deep Caves 6954 | -7/Zion | Learned Factory emergency access door positions 6958 | -7/Zion | Given the Hacking Drone Bay 6959 | -7/Zion | Found Prototype Device 6959 | -7/Zion | Identified Hacking Drone Bay 7159 | -7/Zion | Identified exit to Proximity Caves 7159 | -7/Zion | Entered Proximity Caves 7173 | -6/Proximity Caves | Learned Factory security intel 7217 | -6/Proximity Caves | Learned Factory emergency access door positions 7642 | -6/Proximity Caves | Discovered new exit (range 8) 7644 | -6/Proximity Caves | Identified exit to Factory 7655 | -6/Proximity Caves | Entered Factory 7655 | -6/Factory | Evolved 2 slots: Utility x2 7656 | -6/Factory | Identified exit to Factory 7657 | -6/Factory | Loaded intel: 96 trap records 7708 | -6/Factory | Identified exit to Lower Caves 7742 | -6/Factory | Discovered exit to Factory (range 11) 8002 | -6/Factory | Entered Lower Caves 8002 | -6/Lower Caves | Accompanied by 1 ally 8046 | -6/Lower Caves | Spotted B-75 Beast 8186 | -6/Lower Caves | Discovered new exit (range 13) 8189 | -6/Lower Caves | Identified exit to Lower Caves 8193 | -6/Lower Caves | Entered another Lower Caves area 8195 | -6/Lower Caves | Attracted the attention of an 0b10 checkpoint 8203 | -6/Lower Caves | Encountered a Warlord checkpoint 8349 | -6/Lower Caves | Learned Factory garrison access intel 8523 | -6/Lower Caves | Discovered new exit (range 6) 8524 | -6/Lower Caves | Identified exit to Data Miner 8532 | -6/Lower Caves | Entered Data Miner 8532 | -6/Data Miner | Discovered new exit (range 6) 8539 | -6/Data Miner | Met Data Miner 8541 | -6/Data Miner | Build established: Hacker-Mutant 8546 | -6/Data Miner | Learned location of Section 7 (-2) 8546 | -6/Data Miner | Acquired the access code to Warlord's prototype stash 8552 | -6/Data Miner | Received God Mode back door access code from Data Miner 8559 | -6/Data Miner | Identified exit to Proximity Caves 8559 | -6/Data Miner | Entered Proximity Caves 8752 | -5/Proximity Caves | Spotted B-75 Beast 8980 | -5/Proximity Caves | Learned location of 1 exit from Factory 9037 | -5/Proximity Caves | Discovered exit to Factory (range 11) 9042 | -5/Proximity Caves | Entered Factory 9042 | -5/Factory | Evolved 2 slots: Power x1, Propulsion x1 9043 | -5/Factory | Identified exit to Factory 9045 | -5/Factory | Loaded intel: 4 garrison access locations 9206 | -5/Factory | Identified exit to Upper Caves 9341 | -5/Factory | Fabricated Adv. Hacking Suite (x1) 9349 | -5/Factory | Build established: Hacker-Sprinter 9566 | -5/Factory | Entered Upper Caves 9591 | -5/Upper Caves | Learned Factory emergency access door positions 9598 | -5/Upper Caves | Identified exit to Upper Caves 9609 | -5/Upper Caves | Learned Research trap positions 9609 | -5/Upper Caves | Learned Research terminal intel 9609 | -5/Upper Caves | Learned Extension garrison access intel 9765 | -5/Upper Caves | Ambushed by wild Derelicts 9862 | -5/Upper Caves | Attracted the attention of an 0b10 checkpoint 10507 | -5/Upper Caves | Entered another Upper Caves area 10517 | -5/Upper Caves | Attacked by a delusional Derelict stockpiling Unaware 10529 | -5/Upper Caves | Learned Factory terminal intel 10633 | -5/Upper Caves | Discovered new exit (range 5) 10635 | -5/Upper Caves | Identified exit to Warlord 10635 | -5/Upper Caves | Entered Warlord 10651 | -5/Warlord | System corruption cleaned by Quarantine Array 10748 | -5/Warlord | Visited the Vortex Lab 10751 | -5/Warlord | Met EX-DEC 10752 | -5/Warlord | Found Prototype Energy Cannon 10753 | -5/Warlord | Identified Vortex Cannon 10755 | -5/Warlord | Found Vortex Cannon 10766 | -5/Warlord | Warlord's base attacked by MAIN.C 10770 | -5/Warlord | Met Warlord 10895 | -5/Warlord | Opened Warlord's prototype stash 10903 | -5/Warlord | Found Prototype Hackware 10903 | -5/Warlord | Identified System Mapper 10908 | -5/Warlord | Found Prototype Processor 10908 | -5/Warlord | Identified Exp. Armor Integrity Analyzer 10910 | -5/Warlord | Found Prototype Device 10910 | -5/Warlord | Identified Exp. Focal Shield 10917 | -5/Warlord | Found Prototype Reactor 10917 | -5/Warlord | Identified Vortex Chain Reactor 10968 | -5/Warlord | Warlord forces counterattacked 11022 | -5/Warlord | Opened side exit 11032 | -5/Warlord | Discovered new exit (range 14) 11038 | -5/Warlord | Identified exit to Proximity Caves 11038 | -5/Warlord | Entered Proximity Caves 11452 | -4/Proximity Caves | Learned Research garrison access intel 11452 | -4/Proximity Caves | Learned 4 Research zone layouts 11474 | -4/Proximity Caves | Entered Factory 11474 | -4/Factory | Evolved 2 slots: Utility x2 11476 | -4/Factory | Loaded intel: 22 terminal locations 11520 | -4/Factory | Discovered new exit (range 16) 11544 | -4/Factory | Identified exit to Research 11563 | -4/Factory | Identified exit to Upper Caves 11563 | -4/Factory | Identified exit to Extension 11758 | -4/Factory | Discovered exit to Research (range 16) 11979 | -4/Factory | Fabricated Cld. Impulse Thruster (x1) 12035 | -4/Factory | Crushed by falling debris 12035 | -4/Factory | System corruption reached 10% 12087 | -4/Factory | Lost 5 parts (2n2u1w) 12096 | -4/Factory | Entered Upper Caves 12101 | -4/Upper Caves | Acquired the password to a Derelict Tinkerer's latest research 12107 | -4/Upper Caves | Found Prototype Special Weapon 12107 | -4/Upper Caves | Identified Molecular Deconstructor 12178 | -4/Upper Caves | Caught by Unaware searching for contraband prototypes 12183 | -4/Upper Caves | Attracted the attention of an 0b10 checkpoint 12319 | -4/Upper Caves | Caught by Unaware searching for contraband prototypes 12360 | -4/Upper Caves | Core integrity fell below 50% 12378 | -4/Upper Caves | Encountered a Warlord checkpoint 12396 | -4/Upper Caves | Lost 10 parts (3p4n3u) 12428 | -4/Upper Caves | Core integrity fell below 20% 12432 | -4/Upper Caves | Attracted the attention of an 0b10 outpost 12436 | -4/Upper Caves | Discovered new exit (range 8) 12439 | -4/Upper Caves | Identified exit to Upper Caves 12439 | -4/Upper Caves | Entered another Upper Caves area 12538 | -4/Upper Caves | Learned 8 Research zone layouts 12538 | -4/Upper Caves | Learned Armory terminal intel 12613 | -4/Upper Caves | Attracted the attention of an 0b10 checkpoint 12677 | -4/Upper Caves | Build established: Mutant 12677 | -4/Upper Caves | Discovered new exit (range 7) 12680 | -4/Upper Caves | Identified exit to Zhirov 12682 | -4/Upper Caves | Entered Zhirov 12682 | -4/Zhirov | Discovered new exit (range 3) 12687 | -4/Zhirov | Identified exit to Proximity Caves 12695 | -4/Zhirov | Met Zhirov 12703 | -4/Zhirov | Learned location of Quarantine (-3) 12703 | -4/Zhirov | Learned location of Testing (-2) 12703 | -4/Zhirov | Learned location of Command (-1) 12712 | -4/Zhirov | Zhirov requested help retrieving the SGEMP Prototype 12719 | -4/Zhirov | Found Alien Artifact 12719 | -4/Zhirov | Identified Integrated Dissipator 12719 | -4/Zhirov | Installed Integrated Dissipator, increased core heat dissipation (+20) 12728 | -4/Zhirov | Found Alien Artifact 12728 | -4/Zhirov | Identified Transdimensional Reconstructor 12728 | -4/Zhirov | Warped through subspace 12796 | -4/Zhirov | Entered Proximity Caves 12834 | -3/Proximity Caves | Attracted the attention of an 0b10 outpost 12903 | -3/Proximity Caves | Spotted B-86 Titan 12987 | -3/Proximity Caves | Lost 4 parts (1p1n1u1w) 12993 | -3/Proximity Caves | Destroyed by G-67 Veteran with Electrolaser Last Messages --------------- 12883_ Adv. Power Amplifier destroyed. 12888_ 82-89N(k) breaks down the debris. 12889_ System corrupted: Component data lost. 12908_ System corrupted: Energy discharge (-109). 12923_ System corrupted: Energy discharge (-115). 12924_ Quantum Rifle destroyed. 12927_ Penetrated by Slug. 12927_ Adv. Core Analyzer destroyed. 12927_ Slug penetrates Wall. 12938_ KOT20HTFDF=UC>69D|IIGPOPQLYBZQ 12953_ Penetrated by Slug. 12953_ Fusion Reactor destroyed. 12955_ System corrupted: Field Propulsion Array rejected. 12956_ Acquired Field Propulsion Array. 12956_ Field Propulsion Array destroyed. 12956_ System corrupted by crushing effect (+4). 12956_ Knocked back. 12969_ Acquired 80 matter. 12980_ ##M1OOEN 1